Workbook

Sheet Figure3-B
A1: Source data of Figure 3B
D3: NO. of worm | J3: Percentage of worm
B4: RNAi | D4: L1 | E4: L2 | F4: L3 | G4: L4 | H4: Total | J4: L1 | K4: L2 | L4: L3 | M4: L4
B5: Control | C5: Replicate-1 | D5: 0 | E5: 8 | F5: 36 | G5: 18 | H5: =SUM(D5:G5) -> 62 | J5: =D5/62 -> 0 | K5: 0.1290322581 | L5: 0.5806451613 | M5: 0.2903225806
C6: Replicate-2 | D6: 0 | E6: 15 | F6: 40 | G6: 23 | H6: 78 | J6: =D6/78 -> 0 | K6: 0.1923076923 | L6: 0.5128205128 | M6: 0.2948717949
C7: Replicate-3 | D7: 0 | E7: 5 | F7: 55 | G7: 68 | H7: 128 | J7: =D7/128 -> 0 | K7: 0.0390625 | L7: 0.4296875 | M7: 0.53125
H8: =SUM(H5:H7) -> 268
B10: asp-13 | C10: Replicate-1 | D10: 0 | E10: 16 | F10: 31 | G10: 13 | H10: =SUM(D10:G10) -> 60 | J10: =D10/60 -> 0 | K10: 0.2666666667 | L10: 0.5166666667 | M10: 0.2166666667
C11: Replicate-2 | D11: 0 | E11: 25 | F11: 37 | G11: 19 | H11: 81 | J11: =D11/81 -> 0 | K11: 0.3086419753 | L11: 0.4567901235 | M11: 0.2345679012
C12: Replicate-3 | D12: 0 | E12: 28 | F12: 32 | G12: 20 | H12: 80 | J12: =D12/80 -> 0 | K12: 0.35 | L12: 0.4 | M12: 0.25
H13: =SUM(H10:H12) -> 221
B15: asp-14 | C15: Replicate-1 | D15: 0 | E15: 25 | F15: 44 | G15: 13 | H15: =SUM(D15:G15) -> 82 | J15: =D15/82 -> 0 | K15: 0.3048780488 | L15: 0.5365853659 | M15: 0.1585365854
C16: Replicate-2 | D16: 0 | E16: 23 | F16: 45 | G16: 15 | H16: 83 | J16: =D16/83 -> 0 | K16: 0.2771084337 | L16: 0.5421686747 | M16: 0.1807228916
C17: Replicate-3 | D17: 0 | E17: 25 | F17: 46 | G17: 29 | H17: 100 | J17: =D17/100 -> 0 | K17: 0.25 | L17: 0.46 | M17: 0.29
H18: =SUM(H15:H17) -> 265
B20: cpr-1 | C20: Replicate-1 | D20: 0 | E20: 18 | F20: 26 | G20: 14 | H20: =SUM(D20:G20) -> 58 | J20: =D20/58 -> 0 | K20: 0.3103448276 | L20: 0.4482758621 | M20: 0.2413793103
C21: Replicate-2 | D21: 0 | E21: 23 | F21: 37 | G21: 16 | H21: 76 | J21: =D21/76 -> 0 | K21: 0.3026315789 | L21: 0.4868421053 | M21: 0.2105263158
C22: Replicate-3 | D22: 0 | E22: 17 | F22: 53 | G22: 30 | H22: 100 | J22: =D22/100 -> 0 | K22: 0.17 | L22: 0.53 | M22: 0.3
H23: =SUM(H20:H22) -> 234
B25: cpr-4 | C25: Replicate-1 | D25: 0 | E25: 10 | F25: 28 | G25: 15 | H25: =SUM(D25:G25) -> 53 | J25: =D25/53 -> 0 | K25: 0.1886792453 | L25: 0.5283018868 | M25: 0.2830188679
C26: Replicate-2 | D26: 0 | E26: 9 | F26: 15 | G26: 10 | H26: 34 | J26: =D26/34 -> 0 | K26: 0.2647058824 | L26: 0.4411764706 | M26: 0.2941176471
C27: Replicate-3 | D27: 0 | E27: 11 | F27: 35 | G27: 20 | H27: 66 | J27: =D27/66 -> 0 | K27: 0.1666666667 | L27: 0.5303030303 | M27: 0.303030303
H28: =SUM(H25:H27) -> 153
B30: asp-13, asp-14 | C30: Replicate-1 | D30: 0 | E30: 36 | F30: 43 | G30: 10 | H30: =SUM(D30:G30) -> 89 | J30: =D30/89 -> 0 | K30: 0.404494382 | L30: 0.4831460674 | M30: 0.1123595506
C31: Replicate-2 | D31: 0 | E31: 41 | F31: 58 | G31: 11 | H31: 110 | J31: =D31/110 -> 0 | K31: 0.3727272727 | L31: 0.5272727273 | M31: 0.1
C32: Replicate-3 | D32: 0 | E32: 37 | F32: 45 | G32: 5 | H32: 87 | J32: =D32/87 -> 0 | K32: 0.4252873563 | L32: 0.5172413793 | M32: 0.05747126437
H33: =SUM(H30:H32) -> 286
B35: crp-1,cpr-4 | C35: Replicate-1 | D35: 0 | E35: 11 | F35: 13 | G35: 3 | H35: =SUM(D35:G35) -> 27 | J35: =D35/27 -> 0 | K35: 0.4074074074 | L35: 0.4814814815 | M35: 0.1111111111
C36: Replicate-2 | D36: 0 | E36: 23 | F36: 50 | G36: 27 | H36: 100 | J36: =D36/100 -> 0 | K36: 0.23 | L36: 0.5 | M36: 0.27
C37: Replicate-3 | D37: 0 | E37: 19 | F37: 34 | G37: 19 | H37: 72 | J37: =D37/72 -> 0 | K37: 0.2638888889 | L37: 0.4722222222 | M37: 0.2638888889
H38: =SUM(H35:H37) -> 199
B40: asp-13, asp-14,crp-1,cpr-4 | C40: Replicate-1 | D40: 0 | E40: 46 | F40: 55 | G40: 9 | H40: =SUM(D40:G40) -> 110 | J40: =D40/110 -> 0 | K40: 0.4181818182 | L40: 0.5 | M40: 0.08181818182
C41: Replicate-2 | D41: 0 | E41: 58 | F41: 43 | G41: 7 | H41: 108 | J41: =D41/108 -> 0 | K41: 0.537037037 | L41: 0.3981481481 | M41: 0.06481481481
C42: Replicate-3 | D42: 0 | E42: 70 | F42: 37 | G42: 6 | H42: 113 | J42: =D42/113 -> 0 | K42: 0.6194690265 | L42: 0.3274336283 | M42: 0.05309734513
H43: =SUM(H40:H42) -> 331

Sheet Figure3-C
A1: Source data of Figure 3C
B3: Gonad Length (um) measured by Image J
C4: asp-13/14 OE
B5: WT (n=41) | C5: line1 (n=39) | D5: line2 (n=52)
B6: 17.60247486 | C6: 48.08971384 | D6: 47.65661253
B7: 22.01082753 | C7: 47.40912606 | D7: 51.86388244
B8: 24.39288476 | C8: 48.38360402 | D8: 49.12606342
B9: 28.55375097 | C9: 48.18252127 | D9: 103.4184068
B10: 36.73627224 | C10: 57.41686002 | D10: 57.01469451
B11: 22.16550657 | C11: 40.06187162 | D11: 91.95668987
B12: 33.64269142 | C12: 70.87393658 | D12: 65.6612529
B13: 51.89481825 | C13: 83.37200309 | D13: 89.76024749
B14: 20.40216551 | C14: 40.32482599 | D14: 92.09590101
B15: 39.81438515 | C15: 46.57385924 | D15: 74.09126063
B16: 48.6620263 | C16: 48.25986079 | D16: 64.84145398
B17: 29.24980665 | C17: 65.53750967 | D17: 97.3549884
B18: 28.04331013 | C18: 45.86233565 | D18: 89.14153132
B19: 31.01314772 | C19: 70.44083527 | D19: 48.12064965
B20: 24.68677494 | C20: 54.34206165 | D20: 100.4949729
B21: 28.02784223 | C21: 60.85073473 | D21: 70.5491106
B22: 27.48646558 | C22: 40.35576179 | D22: 61.05181748
B23: 28.13611756 | C23: 38.23665893 | D23: 77.84996133
B24: 33.61175561 | C24: 51.55452436 | D24: 89.76024749
B25: 24.20726991 | C25: 76.11755607 | D25: 97.03016241
B26: 30.79659706 | C26: 46.31090487 | D26: 70.67285383
B27: 29.76024749 | C27: 38.82443929 | D27: 75.69108386
B28: 24.48569219 | C28: 43.94431555 | D28: 42.13457077
B29: 28.78576953 | C29: 37.06109822 | D29: 73.87470998
B30: 33.27146172 | C30: 40.98994586 | D30: 66.86774942
B31: 34.07579273 | C31: 54.7254447 | D31: 38.94818252
B32: 39.47409126 | C32: 85.81593194 | D32: 46.10982212
B33: 33.54988399 | C33: 36.34957463 | D33: 90.68832173
B34: 27.42459397 | C34: 56.07115236 | D34: 47.36272235
B35: 33.56535189 | C35: 57.77262181 | D35: 38.29853055
B36: 30.03866976 | C36: 161.3611756 | D36: 57.30858469
B37: 31.91028616 | C37: 49.37354988 | D37: 38.91724671
B38: 33.225058 | C38: 51.49265275 | D38: 55.73085847
B39: 52.55993813 | C39: 63.4029389 | D39: 41.28383604
B40: 33.76643465 | C40: 53.03944316 | D40: 41.06728538
B41: 25.50657386 | C41: 77.49419954 | D41: 48.32173241
B42: 24.62490333 | C42: 83.86697602 | D42: 45.86233565
B43: 28.39907193 | C43: 47.23897912 | D43: 59.31941222
B44: 31.3379737 | C44: 58.79350348 | D44: 64.60943542
B45: 28.77030162 | D45: 58.68522815
B46: 30.82634303 | D46: 83.41840681
D47: 39.18020108
D48: 58.1129157
D49: 40.66511988
D50: 53.28692962
D51: 103.387471
D52: 50.27068832
D53: 54.30781129
D54: 58.06651199
D55: 37.23124517
D56: 65.75406032
D57: 48.97138438
A58: Average | B58: =AVERAGE(B6:B57) -> 30.89013 | C58: =AVERAGE(C6:C57) -> 57.08141047 | D58: =AVERAGE(D6:D57) -> 63.71629144

Sheet Figure3-D
A1: Source data of Figure 3D
D5: NO. of worm on each location | I5: Percentage of worm on each loaction
D6: HK | E6: HK+VB2 | F6: Wandeirng | G6: Total | I6: HK | J6: HK+VB2 | K6: Wandeirng
B7: WT | C7: Replicate-1 | D7: 11 | E7: 20 | F7: 29 | G7: =SUM(D7:F7) -> 60 | I7: =D7/G7 -> 0.1833333333 | J7: =E7/G7 -> 0.3333333333 | K7: =F7/G7 -> 0.4833333333
C8: Replicate-2 | D8: 14 | E8: 29 | F8: 60 | G8: 103 | I8: 0.1359223301 | J8: 0.2815533981 | K8: 0.5825242718
C9: Replicate-3 | D9: 15 | E9: 29 | F9: 41 | G9: 85 | I9: 0.1764705882 | J9: 0.3411764706 | K9: 0.4823529412
C10: Replicate-4 | D10: 6 | E10: 25 | F10: 46 | G10: 77 | I10: 0.07792207792 | J10: 0.3246753247 | K10: 0.5974025974
C11: Replicate-5 | D11: 20 | E11: 32 | F11: 42 | G11: 94 | I11: 0.2127659574 | J11: 0.3404255319 | K11: 0.4468085106
G12: =SUM(G7:G11) -> 419 | I12: =AVERAGE(I7:I11) -> 0.1572828574 | J12: 0.3242328117 | K12: 0.5184843309
D16: NO. of worm on each location | I16: Percentage of worm on each loaction
D17: HK | E17: HK+VB2 | F17: Wandeirng | G17: Total | I17: HK | J17: HK+VB2 | K17: Wandeirng
B18: asp-13/14 OE line1 | C18: Replicate-1 | D18: 10 | E18: 21 | F18: 21 | G18: =SUM(D18:F18) -> 52 | I18: =D18/G18 -> 0.1923076923 | J18: =E18/G18 -> 0.4038461538 | K18: =F18/G18 -> 0.4038461538
C19: Replicate-2 | D19: 15 | E19: 7 | F19: 21 | G19: 43 | I19: 0.3488372093 | J19: 0.1627906977 | K19: 0.488372093
C20: Replicate-3 | D20: 6 | E20: 5 | F20: 12 | G20: 23 | I20: 0.2608695652 | J20: 0.2173913043 | K20: 0.5217391304
C21: Replicate-4 | D21: 21 | E21: 23 | F21: 19 | G21: 63 | I21: 0.3333333333 | J21: 0.3650793651 | K21: 0.3015873016
C22: Replicate-5 | D22: 18 | E22: 15 | F22: 32 | G22: 65 | I22: 0.2769230769 | J22: 0.2307692308 | K22: 0.4923076923
G23: =SUM(G18:G22) -> 246 | I23: =AVERAGE(I18:I22) -> 0.2824541754 | J23: 0.2759753503 | K23: 0.4415704742
D27: NO. of worm on each location | I27: Percentage of worm on each loaction
D28: HK | E28: HK+VB2 | F28: Wandeirng | G28: Total | I28: HK | J28: HK+VB2 | K28: Wandeirng
B29: asp-13/14 OE line2 | C29: Replicate-1 | D29: 13 | E29: 15 | F29: 18 | G29: =SUM(D29:F29) -> 46 | I29: =D29/G29 -> 0.2826086957 | J29: =E29/G29 -> 0.3260869565 | K29: =F29/G29 -> 0.3913043478
C30: Replicate-2 | D30: 19 | E30: 16 | F30: 14 | G30: 49 | I30: 0.387755102 | J30: 0.3265306122 | K30: 0.2857142857
C31: Replicate-3 | D31: 6 | E31: 8 | F31: 11 | G31: 25 | I31: 0.24 | J31: 0.32 | K31: 0.44
C32: Replicate-4 | D32: 7 | E32: 13 | F32: 21 | G32: 41 | I32: 0.1707317073 | J32: 0.3170731707 | K32: 0.512195122
C33: Replicate-5 | D33: 5 | E33: 9 | F33: 7 | G33: 21 | I33: 0.2380952381 | J33: 0.4285714286 | K33: 0.3333333333
G34: =SUM(G29:G33) -> 182 | I34: =AVERAGE(I29:I33) -> 0.2638381486 | J34: 0.3436524336 | K34: 0.3925094178

Sheet Figure3-E
A1: Source data of Figure 3E
D4: NO. of worm on each location | E4: Replicate-1 | F4: Replicate-2 | G4: Replicate-3
C5: WT (N2) | D5: On HK food | E5: 5 | F5: 3 | G5: 9
D6: wandering | E6: 25 | F6: 27 | G6: 30
E7: =SUM(E5:E6) -> 30 | F7: 30 | G7: 39 | H7: =SUM(E7:G7) -> 99
C9: asp-13/14 OE-Line1 | D9: On HK food | E9: 25 | F9: 25 | G9: 37
D10: wandering | E10: 48 | F10: 40 | G10: 96
E11: =SUM(E9:E10) -> 73 | F11: 65 | G11: 133 | H11: =SUM(E11:G11) -> 271
C13: asp-13/14 OE-Line2 | D13: On HK food | E13: 17 | F13: 7 | G13: 15
D14: wandering | E14: 35 | F14: 15 | G14: 38
E15: =SUM(E13:E14) -> 52 | F15: 22 | G15: 53 | H15: =SUM(E15:G15) -> 127
D20: Percentage of worm on each location | E20: Replicate-1 | F20: Replicate-2 | G20: Replicate-3
C21: WT (N2) | D21: On HK food | E21: 0.1666666667 | F21: 0.1 | G21: =9/39 -> 0.2307692308 | H21: =AVERAGE(E21:G21) -> 0.1658119658
D22: wandering | E22: 0.8333333333 | F22: 0.9 | G22: =30/39 -> 0.7692307692 | H22: 0.8341880342
C25: asp-13/14 OE-Line1 | D25: On HK food | E25: 0.3424657534 | F25: 0.3846153846 | G25: =37/133 -> 0.2781954887 | H25: 0.3350922089
D26: wandering | E26: 0.6575342466 | F26: 0.6153846154 | G26: =96/133 -> 0.7218045113 | H26: 0.6649077911
C29: asp-13/14 OE-Line2 | D29: On HK food | E29: 0.3269230769 | F29: 0.3181818182 | G29: =15/53 -> 0.2830188679 | H29: =AVERAGE(E29:G29) -> 0.3093745877
D30: wandering | E30: 0.6730769231 | F30: 0.6818181818 | G30: =38/53 -> 0.7169811321 | H30: =AVERAGE(E30:G30) -> 0.6906254123

Sheet Figure3-F
A1: Source data of Figure 3F
C3: Flourescence Intensity measured by Image J | G3: Relative Flourescence Intensity
C5: Control RNAi (n=17) | D5: elt-2 RNAi (n=17) | G5: Control RNAi | H5: elt-2 RNAi
C6: 84.5 | D6: 0 | G6: 1.493030618 | H6: 0
C7: 84.167 | D7: 0 | G7: 1.487146841 | H7: 0
C8: 21.5 | D8: 12.75 | G8: 0.3798835301 | H8: 0.2252797679
C9: 10.556 | D9: 0 | G9: 0.1865139788 | H9: 0
C10: 29.8 | D10: 0 | G10: 0.5265362417 | H10: 0
C11: 27.5 | D11: 0 | G11: 0.4858975385 | H11: 0
C12: 89.5 | D12: 0 | G12: 1.581375625 | H12: 0
C13: 33.33 | D13: 0 | G13: 0.5889078167 | H13: 0
C14: 85 | D14: 0 | G14: 1.501865119 | H14: 0
C15: 72.7 | D15: 0 | G15: 1.284536402 | H15: 0
C16: 42.667 | D16: 7 | G16: 0.7538832827 | H16: 0.1236830098
C17: 17.75 | D17: 3 | G17: 0.3136247749 | H17: 0.0530070042
C18: 67.5 | D18: 0 | G18: 1.192657595 | H18: 0
C19: 61.13 | D19: 4 | G19: 1.080106056 | H19: 0.0706760056
C20: 75.667 | D20: 6 | G20: 1.336960329 | H20: 0.1060140084
C21: 77.37 | D21: 0 | G21: 1.367050638 | H21: 0
C22: 81.5 | D22: 0 | G22: 1.440023614 | H22: 0
B23: Average | C23: =AVERAGE(C6:C22) -> 56.59629412 | D23: 1.926470588 | G23: 1 | H23: 0.03403881152

Sheet Figure3-G
A1: Source data of Figure 3G
C3: Flourescence Intensity was measured by ImageJ in each nucleus
C4: total nucleus=53 | O4: Average Flourescence Intensity/worm
A5: HK | B5: worm-1 | C5: 32.333 | D5: 23.25 | E5: 21.5 | F5: 24.625 | G5: 21.333 | O5: =AVERAGE(C5:N5) -> 24.6082
B6: worm-2 | C6: 36.8 | D6: 17.16 | E6: 11.917 | F6: 23.5 | G6: 18.375 | O6: 21.5504
B7: worm-3 | C7: 53.37 | D7: 60.889 | E7: 40.17 | F7: 82.75 | G7: 40.75 | H7: 50.667 | O7: 54.766
B8: worm-4 | C8: 55.667 | D8: 60.111 | E8: 29.444 | F8: 28 | G8: 41.778 | H8: 49.667 | I8: 57.667 | J8: 15.333 | K8: 30.333 | L8: 47.444 | M8: 37.333 | O8: 41.16154545
B9: worm-5 | C9: 35.222 | D9: 44.333 | E9: 45 | F9: 54.778 | G9: 79.556 | H9: 44.889 | I9: 57.444 | J9: 39.778 | K9: 23.667 | L9: 30.444 | M9: 43.333 | O9: 45.31309091
B10: worm-6 | C10: 24 | D10: 56.8 | E10: 28.778 | F10: 22.111 | G10: 28.889 | H10: 27.556 | I10: 22.778 | J10: 36 | O10: 30.864
B11: worm-7 | C11: 21.667 | D11: 23.778 | E11: 25.111 | F11: 27 | G11: 11.556 | H11: 24.111 | I11: 30.556 | O11: 23.397
O12: =AVERAGE(O5:O11) -> 34.52289091
C14: total nucleus=85 | O14: Average Flourescence Intensity/worm
A15: HK+VB2 | B15: worm-1 | C15: 64.444 | D15: 59.889 | E15: 76.222 | F15: 67.889 | G15: 42.778 | O15: =AVERAGE(C15:N15) -> 62.2444
B16: worm-2 | C16: 85.444 | D16: 55 | E16: 75.889 | F16: 85.667 | G16: 75.111 | H16: 82.111 | I16: 53.111 | J16: 44.444 | O16: 69.597125
B17: worm-3 | C17: 70.333 | D17: 71 | E17: 99.667 | F17: 76.444 | G17: 66.444 | H17: 70.111 | I17: 55 | J17: 55.333 | O17: 70.5415
B18: worm-4 | C18: 93.667 | D18: 92.333 | E18: 87.778 | F18: 60.778 | G18: 50.778 | H18: 69.889 | I18: 84 | J18: 77.556 | K18: 81 | L18: 88.889 | O18: 78.6668
B19: worm-5 | C19: 76.222 | D19: 49.556 | E19: 68.444 | F19: 58.111 | G19: 34.667 | H19: 32.556 | O19: 53.25933333
B20: worm-6 | C20: 80.222 | D20: 75.333 | E20: 109.333 | F20: 94.667 | G20: 91.333 | H20: 97.778 | I20: 91.667 | J20: 71.333 | K20: 82.556 | L20: 51.889 | M20: 117.556 | O20: 87.60609091
B21: worm-7 | C21: 72.556 | D21: 99.222 | E21: 102.111 | F21: 99.667 | G21: 110.222 | H21: 91.222 | I21: 92.444 | J21: 107.889 | K21: 101.222 | O21: 97.395
B22: worm-8 | C22: 63.333 | D22: 72.889 | E22: 48.111 | F22: 87.333 | G22: 86.111 | H22: 65.222 | I22: 59.778 | O22: 68.96814286
B23: worm-8 | C23: 66.887 | D23: 66.333 | E23: 49.333 | F23: 54.556 | G23: 107.222 | H23: 61.333 | O23: 67.61066667
B24: worm-9 | C24: 68.667 | D24: 81.778 | E24: 75.444 | F24: 96 | G24: 74.556 | H24: 75.556 | I24: 91.778 | O24: 80.53985714
B25: worm-10 | C25: 53.444 | D25: 81.333 | E25: 83.222 | F25: 75.778 | G25: 67.556 | H25: 67.222 | I25: 58.889 | J25: 40.556 | O25: 66
O26: =AVERAGE(O15:O25) -> 72.94808326
C28: total nucleus=64 | O28: Average Flourescence Intensity/worm
A29: Live | B29: worm-1 | C29: 105.444 | D29: 98.667 | E29: 82.778 | F29: 74.333 | G29: 66.889 | H29: 74.889 | I29: 70 | J29: 69.111 | O29: =AVERAGE(C29:N29) -> 80.263875
B30: worm-2 | C30: 122.222 | D30: 97.667 | E30: 90.554 | F30: 97.778 | G30: 104 | H30: 99.889 | I30: 90.667 | J30: 112.667 | O30: 101.9305
B31: worm-3 | C31: 105.444 | D31: 83.345 | E31: 103.778 | F31: 93.444 | G31: 104.889 | H31: 101.444 | I31: 95.111 | J31: 92.667 | O31: 97.51525
B32: worm-4 | C32: 83.333 | D32: 103.222 | E32: 63.556 | F32: 56.444 | O32: 76.63875
B33: worm-5 | C33: 113.111 | D33: 101.667 | E33: 108.556 | F33: 92.333 | G33: 102 | H33: 103.889 | O33: 103.5926667
B34: worm-6 | C34: 94.333 | D34: 96.444 | E34: 81.667 | F34: 83.556 | G34: 44.444 | O34: 80.0888
B35: worm-7 | C35: 79.444 | D35: 95.444 | E35: 77.444 | F35: 61.667 | O35: 78.49975
B36: worm-8 | C36: 103 | D36: 103.333 | E36: 95.111 | F36: 94.778 | G36: 95.111 | H36: 97.889 | I36: 85.222 | O36: 96.34914286
B37: worm-8 | C37: 97.222 | D37: 98.111 | E37: 104.444 | F37: 84.4444 | G37: 97.778 | H37: 94 | O37: 95.9999
B38: worm-9 | C38: 91.556 | D38: 105.111 | E38: 98.889 | F38: 95.333 | G38: 98.778 | H38: 94.889 | I38: 90.667 | J38: 96.667 | O38: 96.48625
O39: =AVERAGE(O29:O38) -> 90.73648845

Sheet Figure3-H
A1: Source data of Figure 3H
D3: Gonad Length (um) measured by Image J
D5: Control(n=52) | E5: elt-2 O/E (n=52)
D6: 24.94974486 | E6: 55.36353796
D7: 25.77630019 | E7: 65.59146436
D8: 26.23318386 | E8: 140.1581362
D9: 47.4471419 | E9: 86.52224112
D10: 37.53146745 | E10: 37.88619143
D11: 27.93299314 | E11: 112.6396577
D12: 41.86000722 | E12: 39.05994536
D13: 39.39673213 | E13: 43.21230864
D14: 23.35054894 | E14: 100.6730581
D15: 32.21277254 | E15: 96.91685996
D16: 28.13535385 | E16: 161.0047936
D17: 32.09978867 | E17: 108.9202618
D18: 19.28869646 | E18: 34.14195145
D19: 35.94010618 | E19: 129.7525901
D20: 45.28859337 | E20: 65.88114015
D21: 28.38059894 | E21: 39.11097366
D22: 17.34322973 | E22: 69.50497397
D23: 25.59414463 | E23: 92.05731663
D24: 32.84335859 | E24: 21.00963868
D25: 33.48487191 | E25: 64.69388176
D26: 41.24168857 | E26: 28.21813309
D27: 35.51476728 | E27: 43.85351271
D28: 62.88170713 | E28: 52.26204835
D29: 30.24606979 | E29: 54.16401216
D30: 38.06422349 | E30: 107.0148961
D31: 27.9555693 | E31: 60.12875625
D32: 40.41234988 | E32: 110.0688624
D33: 29.59311376 | E33: 97.05458482
D34: 36.1200969 | E34: 18.13040565
D35: 49.70352044 | E35: 71.32230297
D36: 28.26699655 | E36: 35.67156332
D37: 34.43399825 | E37: 62.76728004
D38: 28.28276893 | E38: 80.30823153
D39: 22.23349312 | E39: 65.69651049
D40: 23.54239472 | E40: 108.8393382
D41: 26.8078965 | E41: 46.60440183
D42: 24.55667234 | E42: 80.34121952
D43: 36.06587289 | E43: 92.4615226
D44: 60.91531364 | E44: 78.99087676
D45: 24.10844802 | E45: 132.1261791
D46: 31.32714809 | E46: 59.99762899
D47: 30.50079893 | E47: 117.4371424
D48: 25.8766043 | E48: 63.66939848
D49: 31.70011855 | E49: 46.44420391
D50: 27.11117984 | E50: 102.5378073
D51: 24.54894078 | E51: 40.53677645
D52: 27.77908355 | E52: 50.06958404
D53: 36.33142622 | E53: 30.06061543
D54: 38.3949281 | E54: 57.77526932
D55: 28.21751456 | E55: 94.58151642
D56: 33.59672182 | E56: 112.7015102
D57: 41.81908149 | E57: 29.80001031
C58: Average | D58: =AVERAGE(D6:D57) -> 32.75461812 | E58: =AVERAGE(E6:E57) -> 72.99494277

Sheet Figure3-I
A1: Source data of Figure 3I
C4: Flourescence Intensity measured by Image J | G4: Relative Flourescence Intensity
C6: Control(n=52) | D6: elt-2 O/E (n=51) | G6: Control(n=52) | H6: elt-2 O/E (n=51)
C7: 21.8 | D7: 83.92 | G7: 1.75292102 | H7: 6.747941833 | J7: -
C8: 8.07 | D8: 2.798 | G8: 0.6489024141 | H8: 0.2249850006
C9: 4.7 | D9: 19.541 | G9: 0.3779233391 | H9: 1.571276589
C10: 6.4 | D10: 6.947 | G10: 0.5146190149 | H10: 0.5586028589
C11: 10.01 | D11: 84.937 | G11: 0.804896303 | H11: 6.829718011
C12: 6.352 | D12: 57.87 | G12: 0.5107593723 | H12: 4.653281624
C13: 10.264 | D13: 20.006 | G13: 0.8253202452 | H13: 1.608666877
C14: 9.135 | D14: 16.463 | G14: 0.7345382346 | H14: 1.323777007
C15: 20.117 | D15: 25.562 | G15: 1.617592301 | H15: 2.055420509
C16: 16.48 | D16: 42.578 | G16: 1.325143963 | H16: 3.423663815
C17: 3.45 | D17: 13.647 | G17: 0.2774118127 | H17: 1.09734464
C18: 8.2 | D18: 48.912 | G18: 0.6593556129 | H18: 3.932975822
C19: 84.9 | D19: 47.557 | G19: 6.82674287 | H19: 3.824021327
C20: 7.4 | D20: 12.78 | G20: 0.595028236 | H20: 1.027629845
C21: 3.75 | D21: 37.898 | G21: 0.3015345791 | H21: 3.047348661
C22: 4 | D22: 75.017 | G22: 0.3216368843 | H22: 6.032058538
C23: 7.65 | D23: 34.246 | G23: 0.6151305413 | H23: 2.753694185
C24: 10.29 | D24: 33.87 | G24: 0.8274108849 | H24: 2.723460318
C25: 5.89 | D25: 26.184 | G25: 0.4736103122 | H25: 2.105435045
C26: 5.32 | D26: 8.2 | G26: 0.4277770562 | H26: 0.6593556129
C27: 3.63 | D27: 39.483 | G27: 0.2918854725 | H27: 3.174797276
C28: 12.8 | D28: 6.831 | G28: 1.02923803 | H28: 0.5492753892
C29: 19.245 | D29: 16.3 | G29: 1.54747546 | H29: 1.310670304
C30: 18.888 | D30: 9.427 | G30: 1.518769368 | H30: 0.7580177271
C31: 3.875 | D31: 19.378 | G31: 0.3115857317 | H31: 1.558169886
C32: 5.043 | D32: 12.673 | G32: 0.4055037019 | H32: 1.019026059
C33: 4.5 | D33: 14.667 | G33: 0.3618414949 | H33: 1.179362046
C34: 4.09 | D34: 14.778 | G34: 0.3288737142 | H34: 1.188287469
C35: 12.965 | D35: 7.041 | G35: 1.042505551 | H35: 0.5661613256
C36: 6.833 | D36: 85 | G36: 0.5494362077 | H36: 6.834783792
C37: 6.592 | D37: 13.716 | G37: 0.5300575854 | H37: 1.102892876
C38: 4.92 | D38: 48.151 | G38: 0.3956133677 | H38: 3.871784404
C39: 4.97 | D39: 6.815 | G39: 0.3996338288 | H39: 0.5479888417
C40: 5.945 | D40: 17.574 | G40: 0.4780328193 | H40: 1.413111651
C41: 9.81 | D41: 13.932 | G41: 0.7888144588 | H41: 1.120261268
C42: 7.185 | D42: 9.748 | G42: 0.5777402535 | H42: 0.7838290871
C43: 3.79 | D43: 22.741 | G43: 0.3047509479 | H43: 1.828586097
C44: 6.936 | D44: 26.03 | G44: 0.5577183574 | H44: 2.093052025
C45: 71.6 | D45: 13.58 | G45: 5.757300229 | H45: 1.091957222
C46: 8.4 | D46: 22.06 | G46: 0.6754374571 | H46: 1.773827417
C47: 11.524 | D47: 28.804 | G47: 0.9266358637 | H47: 2.316107204
C48: 4.239 | D48: 10.5 | G48: 0.3408546882 | H48: 0.8442968214
C49: 25.09 | D49: 7.75 | G49: 2.017467357 | H49: 0.6231714634
C50: 52 | D50: 68.12 | G50: 4.181279496 | H50: 5.47747614
C51: 8.275 | D51: 7.8 | G51: 0.6653863045 | H51: 0.6271919244
C52: 4.483 | D52: 10.7 | G52: 0.3604745381 | H52: 0.8603786656
C53: 7.224 | D53: 11.1 | G53: 0.5808762131 | H53: 0.892542354
C54: 37.7 | D54: 12.8 | G54: 3.031427635 | H54: 1.02923803
C55: 4.822 | D55: 12.9 | G55: 0.3877332641 | H55: 1.037278952
C56: 5.617 | D56: 15.9 | G56: 0.4516585948 | H56: 1.278506615
C57: 5.517 | D57: 44.9 | G57: 0.4436176727 | H57: 3.610374027
C58: 4.006 | G58: 0.3221193397
B60: Average | C60: =AVERAGE(C7:C58) -> 12.43638462 | D60: =AVERAGE(D7:D59) -> 26.47317647 | G60: =AVERAGE(G7:G58) -> 1 | H60: =AVERAGE(H7:H59) -> 2.1286875

Sheet Figure 3-supplement 1A
A1: Source data of Figure 3—figure supplement 1A.
D4: Flourescence Intensity measured by Image J | J4: Relative Flourescence Intensity
D5: Control RNAi | G5: asp-13/14 RNAi | J5: Control RNAi | M5: asp-13/14 RNAi
D6: HK | E6: HK+VB2 | G6: HK | H6: HK+VB2 | J6: HK (n=33) | K6: HK+VB2 (n=27) | M6: HK (n=32) | N6: HK+VB2 (n=24)
D7: 4.1 | E7: 6.3 | G7: 2.5 | H7: 6.3 | J7: 1.092009685 | K7: 1.677966102 | M7: 0.6658595642 | N7: 1.677966102
D8: 1.4 | E8: 2.6 | G8: 3 | H8: 2.8 | J8: 0.3728813559 | K8: 0.6924939467 | M8: 0.799031477 | N8: 0.7457627119
D9: 2.4 | E9: 9.2 | G9: 4.7 | H9: 7.7 | J9: 0.6392251816 | K9: 2.450363196 | M9: 1.251815981 | N9: 2.050847458
D10: 1 | E10: 10.2 | G10: 4.9 | H10: 3 | J10: 0.2663438257 | K10: 2.716707022 | M10: 1.305084746 | N10: 0.799031477
D11: 2 | E11: 9.95 | G11: 2.6 | H11: 2.5 | J11: 0.5326876513 | K11: 2.650121065 | M11: 0.6924939467 | N11: 0.6658595642
D12: 2.2 | E12: 19.5 | G12: 2 | H12: 4.75 | J12: 0.5859564165 | K12: 5.1937046 | M12: 0.5326876513 | N12: 1.265133172
D13: 4.2 | E13: 12.6 | G13: 1.2 | H13: 4 | J13: 1.118644068 | K13: 3.355932203 | M13: 0.3196125908 | N13: 1.065375303
D14: 4.6 | E14: 5.4 | G14: 2.2 | H14: 4.2 | J14: 1.225181598 | K14: 1.438256659 | M14: 0.5859564165 | N14: 1.118644068
D15: 4.8 | E15: 10.4 | G15: 3 | H15: 2 | J15: 1.278450363 | K15: 2.769975787 | M15: 0.799031477 | N15: 0.5326876513
D16: 4.6 | E16: 10.6 | G16: 2 | H16: 3 | J16: 1.225181598 | K16: 2.823244552 | M16: 0.5326876513 | N16: 0.799031477
D17: 5.5 | E17: 7.4 | G17: 3.4 | H17: 1.85 | J17: 1.464891041 | K17: 1.97094431 | M17: 0.9055690073 | N17: 0.4927360775
D18: 3 | E18: 9.5 | G18: 1.9 | H18: 2.8 | J18: 0.799031477 | K18: 2.530266344 | M18: 0.5060532688 | N18: 0.7457627119
D19: 5.4 | E19: 47.7 | G19: 2.8 | H19: 9.1 | J19: 1.438256659 | K19: 12.70460048 | M19: 0.7457627119 | N19: 2.423728814
D20: 2.7 | E20: 15.55 | G20: 3 | H20: 7.6 | J20: 0.7191283293 | K20: 4.141646489 | M20: 0.799031477 | N20: 2.024213075
D21: 4 | E21: 5.2 | G21: 5.9 | H21: 2.4 | J21: 1.065375303 | K21: 1.384987893 | M21: 1.571428571 | N21: 0.6392251816
D22: 6.2 | E22: 10.3 | G22: 1.75 | H22: 4.55 | J22: 1.651331719 | K22: 2.743341404 | M22: 0.4661016949 | N22: 1.211864407
D23: 5 | E23: 13 | G23: 2.6 | H23: 2.23 | J23: 1.331719128 | K23: 3.462469734 | M23: 0.6924939467 | N23: 0.5939467312
D24: 2.5 | E24: 9.5 | G24: 2 | H24: 2 | J24: 0.6658595642 | K24: 2.530266344 | M24: 0.5326876513 | N24: 0.5326876513
D25: 3.1 | E25: 9.7 | G25: 5.6 | H25: 2.4 | J25: 0.8256658596 | K25: 2.583535109 | M25: 1.491525424 | N25: 0.6392251816
D26: 7.4 | E26: 9.4 | G26: 3 | H26: 3.8 | J26: 1.97094431 | K26: 2.503631961 | M26: 0.799031477 | N26: 1.012106538
D27: 4.4 | E27: 17.3 | G27: 2 | H27: 3 | J27: 1.171912833 | K27: 4.607748184 | M27: 0.5326876513 | N27: 0.799031477
D28: 2 | E28: 17.6 | G28: 2.2 | H28: 2.2 | J28: 0.5326876513 | K28: 4.687651332 | M28: 0.5859564165 | N28: 0.5859564165
D29: 4.4 | E29: 5.6 | G29: 7.85 | H29: 3.98 | J29: 1.171912833 | K29: 1.491525424 | M29: 2.090799031 | N29: 1.060048426
D30: 2 | E30: 14.5 | G30: 2 | H30: 2 | J30: 0.5326876513 | K30: 3.861985472 | M30: 0.5326876513 | N30: 0.5326876513
D31: 4.3 | E31: 7.7 | G31: 2.75 | J31: 1.14527845 | K31: 2.050847458 | M31: 0.7324455206
D32: 2.3 | E32: 7.9 | G32: 4.5 | J32: 0.612590799 | K32: 2.104116223 | M32: 1.198547215
D33: 6.3 | E33: 7.13 | G33: 1 | J33: 1.677966102 | K33: 1.899031477 | M33: 0.2663438257
D34: 5.3 | G34: 5.8 | J34: 1.411622276 | M34: 1.544794189
D35: 3.5 | G35: 2 | J35: 0.9322033898 | M35: 0.5326876513
D36: 2.8 | G36: 1.6 | J36: 0.7457627119 | M36: 0.4261501211
D37: 4.6 | G37: 9.2 | J37: 1.225181598 | M37: 2.450363196
D38: 3.2 | G38: 2 | J38: 0.8523002421 | M38: 0.5326876513
D39: 2.7 | J39: 0.7191283293
C40: Average | D40: =AVERAGE(D7:D39) -> 3.754545455 | E40: 11.54555556 | G40: 3.2171875 | H40: 3.756666667 | J40: =AVERAGE(J7:J39) -> 1 | K40: 3.075087436 | M40: 0.8568780266 | N40: 1.000564972

Sheet Figrue3-supplement 1B
A1: Source data of Figure 3—figure supplement 1B.
C4: Gonad length (um)
C6: Control RNAi | F6: asp-13+14 RNAi
C7: HK (n=50) | D7: HK+VB2 (n=48) | F7: HK (n=47) | G7: HK+VB2 (n=58)
C9: 29.85087179 | D9: 72.77487179 | F9: 26.60133333 | G9: 15.97097436
C10: 20.18615385 | D10: 57.87548718 | F10: 18.59692308 | G10: 29.89661538
C11: 21.75712821 | D11: 62.85630769 | F11: 23.04205128 | G11: 35.92964103
C12: 20.06615385 | D12: 60.12410256 | F12: 25.3374359 | G12: 44.33435897
C13: 23.30553846 | D13: 54.83251282 | F13: 20.82328205 | G13: 28.88051282
C14: 26.58174359 | D14: 81.07507692 | F14: 22.81487179 | G14: 24.88533333
C15: 25.10287179 | D15: 69.55661538 | F15: 23.5374359 | G15: 40.34646154
C16: 15.83938462 | D16: 69.42112821 | F16: 20.86194872 | G16: 26.28379487
C17: 20.69784615 | D17: 99.63948718 | F17: 28.34779487 | G17: 48.85333333
C18: 26.80984615 | D18: 94.41528205 | F18: 20.21025641 | G18: 40.6934359
C19: 24.32523077 | D19: 79.79784615 | F19: 23.15066667 | G19: 29.38092308
C20: 15.91989744 | D20: 87.01405128 | F20: 19.208 | G20: 31.26071795
C21: 24.94020513 | D21: 96.28871795 | F21: 21.95087179 | G21: 25.14051282
C22: 30.15538462 | D22: 50.93394872 | F22: 21.60430769 | G22: 29.86041026
C23: 24.93928205 | D23: 94.42184615 | F23: 20.50482051 | G23: 33.91466667
C24: 20.67733333 | D24: 51.87528205 | F24: 22.06174359 | G24: 47.83476923
C25: 23.83569231 | D25: 65.29271795 | F25: 23.25671795 | G25: 37.87794872
C26: 25.56810256 | D26: 60.87312821 | F26: 27.04564103 | G26: 27.76912821
C27: 21.69835897 | D27: 69.1185641 | F27: 25.49579487 | G27: 38.64697436
C28: 26.43292308 | D28: 74.65784615 | F28: 23.58820513 | G28: 43.93538462
C29: 19.08687179 | D29: 77.18964103 | F29: 24.44 | G29: 66.08092308
C30: 24.17230769 | D30: 120.6979487 | F30: 34.58882051 | G30: 63.51753846
C31: 19.13887179 | D31: 83.78748718 | F31: 28.89374359 | G31: 36.63989744
C32: 22.16451282 | D32: 42.40666667 | F32: 24.28430769 | G32: 28.5225641
C33: 23.40379487 | D33: 69.97302564 | F33: 27.056 | G33: 31.06164103
C34: 27.38635897 | D34: 72.85097436 | F34: 22.2774359 | G34: 29.48235897
C35: 30.25415385 | D35: 75.15025641 | F35: 25.08994872 | G35: 58.46266667
C36: 25.22697436 | D36: 86.08974359 | F36: 30.60338462 | G36: 50.38348718
C37: 22.23917949 | D37: 60.4094359 | F37: 25.94984615 | G37: 43.80892308
C38: 20.91630769 | D38: 70.11723077 | F38: 21.95794872 | G38: 33.3425641
C39: 21.93630769 | D39: 118.8205128 | F39: 20.18 | G39: 39.76861538
C40: 22.29015385 | D40: 64.90328205 | F40: 22.02123077 | G40: 28.14841026
C41: 22.25825641 | D41: 58.10533333 | F41: 25.59302564 | G41: 35.95989744
C42: 19.89558974 | D42: 81.47538462 | F42: 23.32748718 | G42: 19.16851282
C43: 21.90030769 | D43: 56.57261538 | F43: 25.37271795 | G43: 78.48020513
C44: 22.58758974 | D44: 54.07241026 | F44: 27.50882051 | G44: 53.67989744
C45: 26.15384615 | D45: 76.80092308 | F45: 27.50882051 | G45: 51.21107692
C46: 21.42605128 | D46: 66.47302564 | F46: 27.42882051 | G46: 23.16092308
C47: 28.132 | D47: 71.63066667 | F47: 21.99087179 | G47: 29.48328205
C48: 20.79558974 | D48: 61.89374359 | F48: 18.64779487 | G48: 103.1373333
C49: 29.33425641 | D49: 47.34133333 | F49: 23.93876923 | G49: 36.24112821
C50: 21.43364103 | D50: 50.59210256 | F50: 22.92871795 | G50: 97.56225641
C51: 27.82358974 | D51: 82.62820513 | F51: 21.39107692 | G51: 25.30010256
C52: 19.37487179 | D52: 65.86266667 | F52: 22.1134359 | G52: 25.2025641
C53: 27.07692308 | D53: 71.87651282 | F53: 22.52441026 | G53: 27.05589744
C54: 31.87251282 | D54: 75.91723077 | F54: 22.02092308 | G54: 38.25425641
C55: 26.62738462 | D55: 73.70871795 | F55: 26.03046154 | G55: 28.62697436
C56: 21.79630769 | D56: 58.82471795 | G56: 33.68635897
C57: 25.45682051 | G57: 39.86605128
C58: 21.13241026 | G58: 35.54482051
G59: 68.23979487
G60: 28.54246154
G61: 29.47753846
G62: 33.12235897
G63: 28.90502564
G64: 42.76
G65: 24.74194872
G66: 48.65794872
B68: Average | C68: =AVERAGE(C9:C67) -> 23.63967385 | D68: 71.85451282 | F68: 23.90870049 | G68: 39.2583466

Sheet Figrue3-supplement 2A
A1: Source data of Figure 3—figure supplement 2A
D3: Flourescence Intensity measured by Image J
C4: RNAi:
C5: Control | D5: nhr-10 | E5: nhr-8 | F5: nhr-34 | G5: nhr-76 | H5: elt-6 | I5: unc-62 | J5: nhr-68 | K5: nhr-103 | L5: nhr-163 | M5: nhr-116 | N5: nhr-204 | O5: elt-2 | P5: nhr-32 | Q5: nhr-14 | R5: C30G4.7 | S5: nhr-173 | T5: elt-3 | U5: 2016-06-01
C6: 82.19 | D6: 83.117 | E6: 46.9 | F6: 11.2 | G6: 84 | H6: 80.8 | I6: 64.6 | J6: 66.917 | K6: 83.12 | L6: 83.9 | M6: 84.9 | N6: 14.08 | O6: 6.417 | P6: 84.04 | Q6: 0 | R6: 19.7 | S6: 4.762 | T6: 0 | U6: 25.5
C7: 85.75 | D7: 66.663 | E7: 39.1 | F7: 85.03 | G7: 27.8 | H7: 44.3 | I7: 83.7 | J7: 84.5 | K7: 56.167 | L7: 47.6 | M7: 71.3 | N7: 1 | O7: 0 | P7: 72.889 | Q7: 0 | R7: 78 | S7: 30.952 | T7: 0 | U7: 28.8
C8: 81.75 | D8: 83.4 | E8: 44.5 | F8: 84.5 | G8: 19 | H8: 17 | I8: 84.5 | J8: 74.3 | K8: 23.55 | L8: 79 | M8: 51.4 | N8: 1 | O8: 0 | P8: 62.125 | Q8: 1.722 | R8: 47.68 | S8: 0 | T8: 73.33 | U8: 14.5
C9: 82.5 | G9: 85.4 | H9: 11.2 | I9: 50.5 | J9: 71.4 | K9: 83.6 | L9: 74.6 | M9: 73.11 | N9: 30 | O9: 0 | P9: 85.125 | Q9: 10.5 | R9: 80.375 | S9: 20.5 | T9: 84.85 | U9: 82.136
C10: 84.5 | G10: 85.8 | H10: 58.5 | J10: 27.4 | K10: 74.83 | M10: 85.11 | N10: 0 | O10: 0 | P10: 83.636 | Q10: 8.143 | R10: 14.065 | S10: 7 | T10: 81.3 | U10: 32.06
C11: 85 | H11: 77 | N11: 54.6 | O11: 0 | Q11: 4 | R11: 1 | S11: 10.25 | T11: 74.03 | U11: 80.75
C12: 56.75 | H12: 84.9 | N12: 0 | O12: 0 | Q12: 34.3 | R12: 27.375 | S12: 23.667 | T12: 74.9 | U12: 40.55
C13: 46.22 | H13: 85.5 | N13: 84.2 | O13: 0 | Q13: 10.167 | R13: 24.775 | S13: 6.167 | T13: 79.1 | U13: 81.375
C14: 51 | N14: 10.455 | O14: 0 | Q14: 3.5 | R14: 4.8 | S14: 30 | T14: 8.38
C15: 41.667 | N15: 38.1 | O15: 0 | Q15: 31 | S15: 14 | T15: 25.667
C16: 85 | N16: 23.87 | Q16: 3 | S16: 16.938 | T16: 67.57
C17: 86.75 | N17: 1 | Q17: 73.58 | S17: 34.15 | T17: 85.42
C18: 85 | N18: 29.6 | Q18: 7
C19: 85.7 | N19: 31.6 | Q19: 28
N20: 10.375
N21: 44.9
N22: 9.75
N23: 12.33
N24: 27
N25: 0
B26: Average | C26: =AVERAGE(C6:C25) -> 74.26978571 | D26: 77.72666667 | E26: 43.5 | F26: 60.24333333 | G26: 60.4 | H26: 57.4 | I26: 70.825 | J26: 64.9034 | K26: 64.2534 | L26: 71.275 | M26: 73.164 | N26: 21.193 | O26: 0.6417 | P26: 77.563 | Q26: 15.35085714 | R26: 33.08555556 | S26: 16.53216667 | T26: 54.54558333 | U26: 48.208875

Sheet Figrue3-supplement 2C
A1: Source data of Figure 3—figure supplement 2C
D5: NO. of worm on each location | I5: Percentage of worm on each loaction
D6: HK | E6: HK+VB2 | F6: Wandeirng | G6: Total | I6: HK | J6: HK+VB2 | K6: Wandeirng
B7: elt-2 OE | C7: Replicate-1 | D7: 5 | E7: 6 | F7: 23 | G7: =SUM(D7:F7) -> 34 | I7: =D7/G7 -> 0.1470588235 | J7: =E7/G7 -> 0.1764705882 | K7: =F7/G7 -> 0.6764705882
C8: Replicate-2 | D8: 4 | E8: 4 | F8: 18 | G8: 26 | I8: 0.1538461538 | J8: 0.1538461538 | K8: 0.6923076923
C9: Replicate-3 | D9: 4 | E9: 3 | F9: 15 | G9: 22 | I9: 0.1818181818 | J9: 0.1363636364 | K9: 0.6818181818
C10: Replicate-4 | D10: 4 | E10: 3 | F10: 20 | G10: 27 | I10: 0.1481481481 | J10: 0.1111111111 | K10: 0.7407407407
C11: Replicate-5 | D11: 6 | E11: 7 | F11: 18 | G11: 31 | I11: 0.1935483871 | J11: 0.2258064516 | K11: 0.5806451613
G12: =SUM(G7:G11) -> 140 | I12: =AVERAGE(I7:I11) -> 0.1648839389 | J12: 0.1607195882 | K12: 0.6743964729
D14: NO. of worm on each location | I14: Percentage of worm on each loaction
D15: HK | E15: HK+VB2 | F15: Wandeirng | G15: Total | I15: HK | J15: HK+VB2 | K15: Wandeirng
B16: Control | C16: Replicate-1 | D16: 10 | E16: 26 | F16: 93 | G16: =SUM(D16:F16) -> 129 | I16: =D16/G16 -> 0.07751937984 | J16: =E16/G16 -> 0.2015503876 | K16: =F16/G16 -> 0.7209302326
C17: Replicate-2 | D17: 13 | E17: 37 | F17: 73 | G17: 123 | I17: 0.1056910569 | J17: 0.3008130081 | K17: 0.593495935
C18: Replicate-3 | D18: 10 | E18: 18 | F18: 112 | G18: 140 | I18: 0.07142857143 | J18: 0.1285714286 | K18: 0.8
G19: =SUM(G16:G18) -> 392 | I19: =AVERAGE(I16:I18) -> 0.08487966939 | J19: 0.2103116081 | K19: 0.7048087225

Sheet Figrue3-supplement 2E
A1: Source data of Figure 3—figure supplement 2E
G5: NO.of worm
D6: Worm genotype | E6: RNAi | G6: L1 | H6: L2 | I6: L3 | J6: L4 | K6: total
D7: asp-13/14 OE | E7: elt-2 RNAi | F7: Replicate-1 | G7: 6 | H7: 50 | I7: 77 | J7: 11 | K7: =SUM(G7:J7) -> 144
F8: Replicate-2 | G8: 10 | H8: 64 | I8: 119 | J8: 12 | K8: 205
F9: Replicate-3 | G9: 12 | H9: 47 | I9: 96 | J9: 16 | K9: 171
F10: Replicate-4 | G10: 8 | H10: 49 | I10: 50 | J10: 10 | K10: 117
F11: Replicate-5 | G11: 7 | H11: 42 | I11: 60 | J11: 30 | K11: 139
F12: Replicate-6 | G12: 19 | H12: 48 | I12: 90 | J12: 9 | K12: 166
K13: =SUM(K7:K12) -> 942
D16: N2(Control) | E16: elt-2 RNAi | F16: Replicate-1 | G16: 188 | H16: 14 | I16: 7 | J16: 0 | K16: =SUM(G16:J16) -> 209
F17: Replicate-2 | G17: 164 | H17: 9 | I17: 2 | J17: 0 | K17: 175
F18: Replicate-3 | G18: 187 | H18: 13 | I18: 4 | J18: 0 | K18: 204
K19: =SUM(K16:K18) -> 588
G25: % of worm
D26: Worm genotype | E26: RNAi | G26: L1 | H26: L2 | I26: L3 | J26: L4
D27: asp-13/14 OE | E27: elt-2 RNAi | F27: Replicate-1 | G27: =G7/144 -> 0.04166666667 | H27: 0.3472222222 | I27: 0.5347222222 | J27: 0.07638888889
F28: Replicate-2 | G28: =G8/205 -> 0.0487804878 | H28: 0.312195122 | I28: 0.5804878049 | J28: 0.05853658537
F29: Replicate-3 | G29: =G9/171 -> 0.0701754386 | H29: 0.2748538012 | I29: 0.5614035088 | J29: 0.09356725146
F30: Replicate-4 | G30: =G10/117 -> 0.06837606838 | H30: 0.4188034188 | I30: 0.4273504274 | J30: 0.08547008547
F31: Replicate-5 | G31: =G11/139 -> 0.05035971223 | H31: 0.3021582734 | I31: 0.4316546763 | J31: 0.2158273381
F32: Replicate-6 | G32: =G12/166 -> 0.1144578313 | H32: 0.2891566265 | I32: 0.5421686747 | J32: 0.05421686747
G33: =AVERAGE(G27:G32) -> 0.06563603417 | H33: 0.3240649107 | I33: 0.5129645524 | J33: 0.0973345028
D36: N2(Control) | E36: elt-2 RNAi | F36: Replicate-1 | G36: =G16/209 -> 0.8995215311 | H36: 0.06698564593 | I36: 0.03349282297 | J36: 0
F37: Replicate-2 | G37: =G17/175 -> 0.9371428571 | H37: 0.05142857143 | I37: 0.01142857143 | J37: 0
F38: Replicate-3 | G38: =G18/204 -> 0.9166666667 | H38: 0.0637254902 | I38: 0.01960784314 | J38: 0
G39: =AVERAGE(G36:G38) -> 0.9177770183 | H39: 0.06071323585 | I39: 0.02150974584 | J39: 0
